[Event "Djerba Festival Blitz 2025"]
[Site "Djerba"]
[Date "2025.02.21"]
[Round "9.25"]
[White "Marceil, Jean"]
[Black "Alouani, Ahmed"]
[Result "0-1"]
[Annotator "NA"]
[ECO "E76"]
[WhiteElo "1901"]
[BlackElo "1617"]
[PlyCount "82"]
[EventDate "2025.02.15"]
[EventType "swiss"]
[EventCountry "TUN"]
[SourceTitle "playchess.com"]
[Source "ChessBase"]
[SourceQuality "1"]
[TimeControl "180+3"]

1. d4 {[%emt 0:00:06]} Nf6 {[%emt 0:00:11]} 2. c4 {[%emt 0:00:02]} g6 {[%emt 0:00:03]} 3. Nc3 {[%emt 0:00:02]} Bg7 {[%emt 0:00:02]} 4. e4 {[%emt 0:00:03]} d6 {[%emt 0:00:02]} 5. f4 {[%emt 0:00:02]} Bg4 {[%emt 0:00:09]} 6. Nf3 {[%emt 0:00:05]} c5 {[%emt 0:00:13]} 7. d5 {[%emt 0:00:02]} Qa5 {[%emt 0:00:23]} 8. Bd2 {[%emt 0:00:10]} Qb6 {[%emt 0:00:03]} 9. Rb1 {[%emt 0:00:07]} Na6 {[%emt 0:00:09]} 10. Be2 {[%emt 0:00:09]} O-O {[%emt 0:00:13]} 11. O-O {[%emt 0:00:03]} e6 {[%emt 0:00:30]} 12. h3 {[%emt 0:00:04]} Bxf3 {[%emt 0:00:04]} 13. Bxf3 {[%emt 0:00:02]} exd5 {[%emt 0:00:03]} 14. cxd5 {[%emt 0:00:03]} Rfe8 {[%emt 0:00:19]} 15. Kh1 {[%emt 0:00:16]} Qd8 {[%emt 0:00:20]} 16. a4 {[%emt 0:00:07]} Nb4 {[%emt 0:00:06]} 17. Rg1 {[%emt 0:00:20]} a6 {[%emt 0:00:06]} 18. Be1 {[%emt 0:00:20]} Rb8 {[%emt 0:00:04]} 19. Bg3 {[%emt 0:00:04]} b5 {[%emt 0:00:07]} 20. axb5 {[%emt 0:00:05]} axb5 {[%emt 0:00:03]} 21. Bh4 {[%emt 0:00:12]} Qc7 {[%emt 0:00:07]} 22. Re1 {[%emt 0:00:03]} c4 {[%emt 0:00:16]} 23. e5 {[%emt 0:00:42]} dxe5 {[%emt 0:00:06]} 24. d6 {[%emt 0:00:02]} Qc5 {[%emt 0:00:12]} 25. fxe5 {[%emt 0:00:06]} Rxe5 {[%emt 0:00:07]} 26. Bxf6 {[%emt 0:00:12]} Bxf6 {[%emt 0:00:05]} 27. Ne4 {[%emt 0:00:05]} Rxe4 {[%emt 0:00:05]} 28. Bxe4 {[%emt 0:00:03]} Rd8 {[%emt 0:00:04]} 29. Qf3 {[%emt 0:00:07]} Bg7 {[%emt 0:00:04]} 30. Red1 {[%emt 0:00:06]} Rxd6 {[%emt 0:00:02]} 31. Rxd6 {[%emt 0:00:08]} Qxd6 {[%emt 0:00:02]} 32. Rd1 {[%emt 0:00:02]} Nd3 {[%emt 0:00:12]} 33. Bxd3 {[%emt 0:00:04]} cxd3 {[%emt 0:00:02]} 34. Rxd3 {[%emt 0:00:03]} Qf8 {[%emt 0:00:04]} 35. Ra3 {[%emt 0:00:04]} Qe7 {[%emt 0:00:05]} 36. Ra8+ {[%emt 0:00:03]} Bf8 {[%emt 0:00:02]} 37. Qc6 {[%emt 0:00:11]} Kg7 {[%emt 0:00:02]} 38. Qc8 {[%emt 0:00:05]} Qe1+ {[%emt 0:00:02]} 39. Kh2 {[%emt 0:00:02]} Bd6+ {[%emt 0:00:02]} 40. g3 {[%emt 0:00:05]} Qxg3+ {[%emt 0:00:03]} 41. Kh1 {[%emt 0:00:29]} Qh2# {[%emt 0:00:03]} 0-1

[Event "Djerba Festival Blitz 2025"]
[Site "Djerba"]
[Date "2025.02.21"]
[Round "9.26"]
[White "Minde, Timothe"]
[Black "Alonso Garuti, Luis Eugenio"]
[Result "1-0"]
[Annotator "NA"]
[ECO "B01"]
[WhiteElo "1879"]
[BlackElo "1845"]
[PlyCount "58"]
[EventDate "2025.02.15"]
[EventType "swiss"]
[EventCountry "TUN"]
[SourceTitle "playchess.com"]
[Source "ChessBase"]
[SourceQuality "1"]
[TimeControl "180+3"]

1. e4 {[%emt 0:00:05]} d5 {[%emt 0:00:03]} 2. exd5 {[%emt 0:00:02]} Nf6 {[%emt 0:00:01]} 3. Nf3 {[%emt 0:00:03]} Nxd5 {[%emt 0:00:06]} 4. d4 {[%emt 0:00:05]} Bg4 {[%emt 0:00:09]} 5. c4 {[%emt 0:00:06]} Nf6 {[%emt 0:00:03]} 6. d5 {[%emt 0:00:29]} c6 {[%emt 0:00:01]} 7. dxc6 {[%emt 0:00:10]} Qxd1+ {[%emt 0:00:09]} 8. Kxd1 {[%emt 0:00:02]} Nxc6 {[%emt 0:00:02]} 9. Be2 {[%emt 0:00:12]} e5 {[%emt 0:00:06]} 10. Be3 {[%emt 0:00:08]} O-O-O+ {[%emt 0:00:29]} 11. Kc1 {[%emt 0:00:09]} Bf5 {[%emt 0:00:16]} 12. a3 {[%emt 0:00:16]} Be7 {[%emt 0:00:09]} 13. Nc3 {[%emt 0:00:02]} Rhe8 {[%emt 0:00:16]} 14. h3 {[%emt 0:00:18]} e4 {[%emt 0:00:23]} 15. Ng5 {[%emt 0:00:20]} Bg6 {[%emt 0:00:02]} 16. Bg4+ {[%emt 0:00:24]} Nxg4 {[%emt 0:00:11]} 17. hxg4 {[%emt 0:00:02]} h6 {[%emt 0:00:03]} 18. Ngxe4 {[%emt 0:00:04]} Ne5 {[%emt 0:00:21]} 19. Rd1 {[%emt 0:00:40]} Kb8 {[%emt 0:00:04]} 20. Bf4 {[%emt 0:00:04]} f6 {[%emt 0:00:07]} 21. Bxe5+ {[%emt 0:00:04]} fxe5 {[%emt 0:00:06]} 22. Ng3 {[%emt 0:00:05]} Bg5+ {[%emt 0:00:06]} 23. Rd2 {[%emt 0:00:15]} Rxd2 {[%emt 0:00:18]} 24. Nce4 {[%emt 0:00:03]} Rd4+ {[%emt 0:00:10]} 25. Nxg5 {[%emt 0:00:03]} hxg5 {[%emt 0:00:03]} 26. b3 {[%emt 0:00:02]} Red8 {[%emt 0:00:02]} 27. Kb2 {[%emt 0:00:08]} Rd2+ {[%emt 0:00:04]} 28. Kc3 {[%emt 0:00:02]} a5 {[%emt 0:00:01]} 29. b4 {[%emt 0:00:02]} R8d3# {[%emt 0:00:03]} 1-0

[Event "Djerba Festival Blitz 2025"]
[Site "Djerba"]
[Date "2025.02.21"]
[Round "9.28"]
[White "Guinet, Stephane"]
[Black "Mendil, Yacine"]
[Result "0-1"]
[Annotator "NA"]
[ECO "B50"]
[WhiteElo "1617"]
[BlackElo "1699"]
[PlyCount "54"]
[EventDate "2025.02.15"]
[EventType "swiss"]
[EventCountry "TUN"]
[SourceTitle "playchess.com"]
[Source "ChessBase"]
[SourceQuality "1"]
[TimeControl "180+3"]

1. e4 {[%emt 0:00:03]} c5 {[%emt 0:00:02]} 2. Bc4 {[%emt 0:00:02]} e6 {[%emt 0:00:04]} 3. Nf3 {[%emt 0:00:02]} d6 {[%emt 0:00:02]} 4. d3 {[%emt 0:00:03]} Be7 {[%emt 0:00:03]} 5. O-O {[%emt 0:00:02]} Nf6 {[%emt 0:00:01]} 6. Bg5 {[%emt 0:00:04]} O-O {[%emt 0:00:04]} 7. c3 {[%emt 0:00:02]} Nbd7 {[%emt 0:00:05]} 8. Nbd2 {[%emt 0:00:07]} a6 {[%emt 0:00:02]} 9. a4 {[%emt 0:00:03]} b6 {[%emt 0:00:07]} 10. Re1 {[%emt 0:00:08]} Bb7 {[%emt 0:00:03]} 11. b4 {[%emt 0:00:22]} cxb4 {[%emt 0:00:07]} 12. cxb4 {[%emt 0:00:02]} Rc8 {[%emt 0:00:02]} 13. b5 {[%emt 0:00:13]} a5 {[%emt 0:00:06]} 14. Nb3 {[%emt 0:00:06]} Nc5 {[%emt 0:00:04]} 15. Nxc5 {[%emt 0:00:09]} Rxc5 {[%emt 0:00:07]} 16. Nd4 {[%emt 0:00:11]} Rxg5 {[%emt 0:02:52]} 17. f4 {[%emt 0:00:12]} Rc5 {[%emt 0:00:00]} 18. e5 {[%emt 0:00:20]} Nd5 {[%emt 0:00:00]} 19. Nb3 {[%emt 0:00:11]} Rc8 {[%emt 0:00:00]} 20. Qf3 {[%emt 0:00:15]} Qd7 {[%emt 0:00:00]} 21. Qg3 {[%emt 0:00:10]} dxe5 {[%emt 0:00:00]} 22. fxe5 {[%emt 0:00:02]} Qd8 {[%emt 0:00:00]} 23. Nd4 {[%emt 0:00:13]} Bh4 {[%emt 0:00:00]} 24. Qg4 {[%emt 0:00:11]} Bxe1 {[%emt 0:00:00]} 25. Rxe1 {[%emt 0:00:01]} h6 {[%emt 0:00:00]} 26. Rf1 {[%emt 0:00:20]} Qg5 {[%emt 0:00:00]} 27. Qh3 {[%emt 0:00:15]} Qe3+ {[%emt 0:00:00]} 0-1

[Event "Djerba Festival Blitz 2025"]
[Site "Djerba"]
[Date "2025.02.21"]
[Round "9.29"]
[White "El Gazzar, Ahmed"]
[Black "Skhiri Youssef"]
[Result "1/2-1/2"]
[Annotator "NA"]
[ECO "C54"]
[WhiteElo "1667"]
[BlackElo "1808"]
[PlyCount "143"]
[EventDate "2025.02.15"]
[EventType "swiss"]
[EventCountry "TUN"]
[SourceTitle "playchess.com"]
[Source "ChessBase"]
[SourceQuality "1"]
[TimeControl "180+3"]

1. e4 {[%emt 0:00:02]} e5 {[%emt 0:00:03]} 2. Nf3 {[%emt 0:00:04]} Nc6 {[%emt 0:00:03]} 3. Bc4 {[%emt 0:00:02]} Bc5 {[%emt 0:00:02]} 4. c3 {[%emt 0:00:03]} Nf6 {[%emt 0:00:02]} 5. d3 {[%emt 0:00:01]} d6 {[%emt 0:00:02]} 6. Be3 {[%emt 0:00:05]} Bb6 {[%emt 0:00:11]} 7. Nbd2 {[%emt 0:00:03]} O-O {[%emt 0:00:11]} 8. O-O {[%emt 0:00:04]} Be6 {[%emt 0:00:20]} 9. Bb3 {[%emt 0:00:06]} h6 {[%emt 0:00:03]} 10. h3 {[%emt 0:00:08]} Qd7 {[%emt 0:00:06]} 11. Bxb6 {[%emt 0:00:07]} axb6 {[%emt 0:00:03]} 12. Bxe6 {[%emt 0:00:05]} fxe6 {[%emt 0:00:04]} 13. Re1 {[%emt 0:00:11]} Qf7 {[%emt 0:00:07]} 14. Nf1 {[%emt 0:00:05]} Nh5 {[%emt 0:00:11]} 15. Ne3 {[%emt 0:00:40]} Nf4 {[%emt 0:00:19]} 16. Nh2 {[%emt 0:00:30]} Kh8 {[%emt 0:00:36]} 17. Qg4 {[%emt 0:00:13]} Rxa2 {[%emt 0:00:49]} 18. Rxa2 {[%emt 0:00:10]} Nxh3+ {[%emt 0:00:03]} 19. Qxh3 {[%emt 0:00:27]} Qxf2+ {[%emt 0:00:04]} 20. Kh1 {[%emt 0:00:03]} Qxe1+ {[%emt 0:00:03]} 21. Nhf1 {[%emt 0:00:13]} Rxf1+ {[%emt 0:00:31]} 22. Nxf1 {[%emt 0:00:03]} Qxf1+ {[%emt 0:00:02]} 23. Kh2 {[%emt 0:00:02]} Qf4+ {[%emt 0:00:10]} 24. Qg3 {[%emt 0:00:06]} Qf7 {[%emt 0:00:04]} 25. Ra8+ {[%emt 0:00:02]} Kh7 {[%emt 0:00:02]} 26. Qf3 {[%emt 0:00:08]} Qxf3 {[%emt 0:00:05]} 27. gxf3 {[%emt 0:00:02]} Ne7 {[%emt 0:00:08]} 28. Re8 {[%emt 0:00:06]} Ng6 {[%emt 0:00:00]} 29. Rxe6 {[%emt 0:00:06]} Nf4 {[%emt 0:00:01]} 30. Re7 {[%emt 0:00:03]} Nxd3 {[%emt 0:00:08]} 31. Rxc7 {[%emt 0:00:05]} Nxb2 {[%emt 0:00:00]} 32. Rxb7 {[%emt 0:00:03]} Na4 {[%emt 0:00:01]} 33. c4 {[%emt 0:00:34]} Kg6 {[%emt 0:00:04]} 34. Kg3 {[%emt 0:00:00]} Kf6 {[%emt 0:00:04]} 35. Kg4 {[%emt 0:00:00]} Kg6 {[%emt 0:00:03]} 36. f4 {[%emt 0:00:00]} exf4 {[%emt 0:00:02]} 37. Kxf4 {[%emt 0:00:00]} Kf6 {[%emt 0:00:02]} 38. Ra7 {[%emt 0:00:00]} Nc5 {[%emt 0:00:04]} 39. Ra8 {[%emt 0:00:00]} g5+ {[%emt 0:00:02]} 40. Ke3 {[%emt 0:00:00]} Ke5 {[%emt 0:00:04]} 41. Re8+ {[%emt 0:00:00]} Ne6 {[%emt 0:00:01]} 42. Rb8 {[%emt 0:00:00]} Nc5 {[%emt 0:00:04]} 43. Rxb6 {[%emt 0:00:04]} Nxe4 {[%emt 0:00:02]} 44. Rb5+ {[%emt 0:00:06]} Nc5 {[%emt 0:00:02]} 45. Rb6 {[%emt 0:00:04]} h5 {[%emt 0:00:03]} 46. Rb8 {[%emt 0:00:03]} h4 {[%emt 0:00:02]} 47. Re8+ {[%emt 0:00:04]} Ne6 {[%emt 0:00:02]} 48. Rg8 {[%emt 0:00:04]} Kf5 {[%emt 0:00:04]} 49. Kf3 {[%emt 0:00:06]} Nd4+ {[%emt 0:00:06]} 50. Kf2 {[%emt 0:00:04]} Ne6 {[%emt 0:00:03]} 51. Rh8 {[%emt 0:00:06]} g4 {[%emt 0:00:04]} 52. Kg2 {[%emt 0:00:04]} h3+ {[%emt 0:00:03]} 53. Kg3 {[%emt 0:00:03]} Ng5 {[%emt 0:00:02]} 54. Rf8+ {[%emt 0:00:05]} Ke4 {[%emt 0:00:05]} 55. Kxg4 {[%emt 0:00:03]} h2 {[%emt 0:00:01]} 56. Rh8 {[%emt 0:00:03]} Ne6 {[%emt 0:00:04]} 57. Rxh2 {[%emt 0:00:04]} Kd4 {[%emt 0:00:02]} 58. Rc2 {[%emt 0:00:03]} Nd8 {[%emt 0:00:05]} 59. Kf5 {[%emt 0:00:02]} Nc6 {[%emt 0:00:03]} 60. Ke6 {[%emt 0:00:03]} Na5 {[%emt 0:00:03]} 61. Kxd6 {[%emt 0:00:04]} Nxc4+ {[%emt 0:00:02]} 62. Kd7 {[%emt 0:00:04]} Ne5+ {[%emt 0:00:03]} 63. Ke6 {[%emt 0:00:03]} Nc4 {[%emt 0:00:02]} 64. Rc1 {[%emt 0:00:04]} Nd2 {[%emt 0:00:04]} 65. Kd7 {[%emt 0:00:05]} Nc4 {[%emt 0:00:03]} 66. Kc8 {[%emt 0:00:03]} Nd6+ {[%emt 0:00:03]} 67. Kd7 {[%emt 0:00:01]} Ne4 {[%emt 0:00:00]} 68. Rd1+ {[%emt 0:00:02]} Ke5 {[%emt 0:00:00]} 69. Re1 {[%emt 0:00:02]} Kd5 {[%emt 0:00:00]} 70. Rd1+ {[%emt 0:00:01]} Ke5 {[%emt 0:00:00]} 71. Re1 {[%emt 0:00:02]} Kd5 {[%emt 0:00:00]} 72. Rd1+ {[%emt 0:00:03]} 1/2-1/2

[Event "Djerba Festival Blitz 2025"]
[Site "Djerba"]
[Date "2025.02.21"]
[Round "9.30"]
[White "Gunduz, Davud"]
[Black "Saidi, Bouziane"]
[Result "0-1"]
[Annotator "NA"]
[ECO "C45"]
[WhiteElo "1483"]
[BlackElo "1710"]
[PlyCount "110"]
[EventDate "2025.02.15"]
[EventType "swiss"]
[EventCountry "TUN"]
[SourceTitle "playchess.com"]
[Source "ChessBase"]
[SourceQuality "1"]
[TimeControl "180+3"]

1. e4 {[%emt 0:03:06]} e5 {[%emt 0:03:06]} 2. Nf3 Nc6 3. d4 {[%emt 0:00:06]} exd4 {[%emt 0:00:06]} 4. Nxd4 Nxd4 {[%emt 0:00:03]} 5. Qxd4 {[%emt 0:00:06]} d6 {[%emt 0:00:03]} 6. Bc4 {[%emt 0:00:03]} Nf6 {[%emt 0:00:03]} 7. O-O {[%emt 0:00:03]} Be7 {[%emt 0:00:03]} 8. Nc3 {[%emt 0:00:03]} O-O {[%emt 0:00:03]} 9. Qd3 {[%emt 0:00:03]} Be6 {[%emt 0:00:03]} 10. Bb3 {[%emt 0:00:03]} Bxb3 {[%emt 0:00:03]} 11. axb3 {[%emt 0:00:03]} Ng4 {[%emt 0:00:03]} 12. Qg3 {[%emt 0:00:03]} Ne5 {[%emt 0:00:03]} 13. Bh6 {[%emt 0:00:03]} Ng6 {[%emt 0:00:03]} 14. Be3 {[%emt 0:00:03]} Bh4 {[%emt 0:00:03]} 15. Qh3 {[%emt 0:00:03]} Bg5 {[%emt 0:00:03]} 16. Bxg5 {[%emt 0:00:03]} Qxg5 {[%emt 0:00:03]} 17. Qf3 {[%emt 0:00:03]} Nh4 {[%emt 0:00:03]} 18. Qg3 {[%emt 0:00:03]} Qxg3 {[%emt 0:00:03]} 19. hxg3 {[%emt 0:00:03]} Ng6 {[%emt 0:00:03]} 20. f4 {[%emt 0:00:03]} f5 {[%emt 0:00:03]} 21. exf5 {[%emt 0:00:03]} Rxf5 22. Rfe1 {[%emt 0:00:03]} a6 {[%emt 0:00:06]} 23. Re3 {[%emt 0:00:03]} d5 {[%emt 0:00:03]} 24. Na4 {[%emt 0:00:03]} d4 {[%emt 0:00:03]} 25. Re6 {[%emt 0:00:03]} b5 {[%emt 0:00:03]} 26. Rae1 {[%emt 0:00:03]} bxa4 {[%emt 0:00:03]} 27. bxa4 {[%emt 0:00:03]} Rb8 {[%emt 0:00:03]} 28. Re8+ Rxe8 {[%emt 0:00:03]} 29. Rxe8+ {[%emt 0:00:06]} Rf8 {[%emt 0:00:03]} 30. Re6 {[%emt 0:00:03]} Rb8 {[%emt 0:00:03]} 31. b3 {[%emt 0:00:03]} Rb6 {[%emt 0:00:03]} 32. Re8+ {[%emt 0:00:03]} Kf7 {[%emt 0:00:03]} 33. Rc8 Rc6 {[%emt 0:00:03]} 34. Ra8 {[%emt 0:00:06]} Rxc2 35. Rxa6 {[%emt 0:00:03]} d3 {[%emt 0:00:06]} 36. Kf1 {[%emt 0:00:03]} Rc1+ {[%emt 0:00:03]} 37. Kf2 {[%emt 0:00:03]} d2 {[%emt 0:00:03]} 38. a5 {[%emt 0:00:03]} d1=Q {[%emt 0:00:03]} 39. Rxg6 {[%emt 0:00:03]} hxg6 40. b4 {[%emt 0:00:03]} Rc2+ {[%emt 0:00:06]} 41. Ke3 {[%emt 0:00:03]} Rxg2 {[%emt 0:00:03]} 42. a6 {[%emt 0:00:03]} Rxg3+ {[%emt 0:00:03]} 43. Ke4 Qd3+ {[%emt 0:00:03]} 44. Ke5 {[%emt 0:00:06]} Qxa6 {[%emt 0:00:03]} 45. b5 {[%emt 0:00:03]} Qxb5+ {[%emt 0:00:03]} 46. Ke4 Qf5+ {[%emt 0:00:03]} 47. Kd4 {[%emt 0:00:06]} Qxf4+ {[%emt 0:00:03]} 48. Kc5 Rg5+ {[%emt 0:00:03]} 49. Kc6 {[%emt 0:00:06]} Qd6+ 50. Kb7 {[%emt 0:00:03]} Qb6+ {[%emt 0:00:06]} 51. Kc8 {[%emt 0:00:03]} c5 {[%emt 0:00:03]} 52. Kd7 {[%emt 0:00:03]} c4 {[%emt 0:00:03]} 53. Kc8 {[%emt 0:00:03]} Rc5+ {[%emt 0:00:03]} 54. Kd7 {[%emt 0:00:03]} Qc6+ {[%emt 0:00:03]} 55. Kd8 {[%emt 0:00:03]} Rd5# {[%emt 0:00:03]} 0-1

[Event "Djerba Festival Blitz 2025"]
[Site "Djerba"]
[Date "2025.02.21"]
[Round "9.31"]
[White "Dauvois, Theo"]
[Black "Farouz, Paul"]
[Result "1-0"]
[Annotator "NA"]
[ECO "D31"]
[WhiteElo "1663"]
[BlackElo "1680"]
[PlyCount "53"]
[EventDate "2025.02.15"]
[EventType "swiss"]
[EventCountry "TUN"]
[SourceTitle "playchess.com"]
[Source "ChessBase"]
[SourceQuality "1"]
[TimeControl "180+3"]

1. d4 d5 {[%emt 0:00:03]} 2. c4 {[%emt 0:00:05]} e6 {[%emt 0:00:02]} 3. Nc3 {[%emt 0:00:02]} a6 {[%emt 0:00:02]} 4. Nf3 {[%emt 0:00:02]} dxc4 {[%emt 0:00:02]} 5. a4 {[%emt 0:00:06]} Nc6 {[%emt 0:00:02]} 6. e4 {[%emt 0:00:03]} Na5 {[%emt 0:00:03]} 7. Qc2 {[%emt 0:00:19]} Nf6 {[%emt 0:00:09]} 8. Bg5 {[%emt 0:00:03]} c6 {[%emt 0:00:10]} 9. e5 {[%emt 0:00:02]} h6 {[%emt 0:00:03]} 10. Bh4 {[%emt 0:00:14]} g5 {[%emt 0:00:02]} 11. Nxg5 {[%emt 0:00:03]} hxg5 {[%emt 0:00:03]} 12. Bxg5 {[%emt 0:00:02]} Be7 {[%emt 0:00:36]} 13. exf6 {[%emt 0:00:05]} Bxf6 {[%emt 0:00:03]} 14. Bxf6 {[%emt 0:00:04]} Qxf6 {[%emt 0:00:02]} 15. Rd1 {[%emt 0:00:19]} Nb3 {[%emt 0:00:17]} 16. Ne4 {[%emt 0:00:14]} Qf4 {[%emt 0:00:43]} 17. Bxc4 {[%emt 0:00:09]} Na5 {[%emt 0:00:14]} 18. Bd3 {[%emt 0:00:07]} Rxh2 {[%emt 0:00:08]} 19. Rxh2 {[%emt 0:00:12]} Qxh2 {[%emt 0:00:03]} 20. b4 {[%emt 0:00:25]} Bd7 {[%emt 0:00:25]} 21. bxa5 {[%emt 0:00:04]} O-O-O {[%emt 0:00:05]} 22. Nc5 {[%emt 0:00:11]} Qh1+ {[%emt 0:00:19]} 23. Bf1 {[%emt 0:01:21]} Qh4 {[%emt 0:00:23]} 24. Qb1 {[%emt 0:00:00]} b5 {[%emt 0:00:11]} 25. axb6 {[%emt 0:00:00]} Be8 {[%emt 0:00:03]} 26. Bxa6+ {[%emt 0:00:00]} Kb8 {[%emt 0:00:05]} 27. Be2 {[%emt 0:00:00]} 1-0

[Event "Djerba Festival Blitz 2025"]
[Site "Djerba"]
[Date "2025.02.21"]
[Round "9.32"]
[White "Mallah, Mohamed Khalil"]
[Black "Hafsa, Yessine"]
[Result "1/2-1/2"]
[Annotator "NA"]
[ECO "C54"]
[WhiteElo "1499"]
[BlackElo "1503"]
[PlyCount "134"]
[EventDate "2025.02.15"]
[EventType "swiss"]
[EventCountry "TUN"]
[SourceTitle "playchess.com"]
[Source "ChessBase"]
[SourceQuality "1"]
[TimeControl "180+3"]

1. e4 {[%emt 0:00:03]} e5 {[%emt 0:00:02]} 2. Nf3 {[%emt 0:00:01]} Nc6 {[%emt 0:00:02]} 3. Bc4 {[%emt 0:00:02]} Bc5 {[%emt 0:00:02]} 4. c3 {[%emt 0:00:03]} Nf6 {[%emt 0:00:02]} 5. d3 {[%emt 0:00:01]} d6 {[%emt 0:00:02]} 6. Nbd2 {[%emt 0:00:03]} Bg4 {[%emt 0:00:15]} 7. h3 {[%emt 0:00:05]} Bh5 {[%emt 0:00:02]} 8. Nf1 {[%emt 0:00:14]} Ne7 {[%emt 0:00:19]} 9. Ng3 {[%emt 0:00:05]} Bg6 {[%emt 0:00:03]} 10. O-O {[%emt 0:00:14]} O-O {[%emt 0:00:02]} 11. Bg5 {[%emt 0:00:04]} Nh5 {[%emt 0:00:25]} 12. Nxh5 {[%emt 0:00:20]} Bxh5 {[%emt 0:00:03]} 13. d4 {[%emt 0:00:04]} exd4 {[%emt 0:00:08]} 14. cxd4 {[%emt 0:00:01]} Bxf3 {[%emt 0:00:31]} 15. Qxf3 {[%emt 0:00:09]} Bxd4 {[%emt 0:00:03]} 16. Qb3 {[%emt 0:00:07]} Bb6 {[%emt 0:00:13]} 17. Rac1 {[%emt 0:00:06]} Qd7 {[%emt 0:00:02]} 18. Rfd1 {[%emt 0:00:07]} Ng6 {[%emt 0:00:04]} 19. Bb5 {[%emt 0:00:09]} c6 {[%emt 0:00:04]} 20. Be2 {[%emt 0:00:04]} Bc7 {[%emt 0:00:14]} 21. Bg4 {[%emt 0:00:02]} Qxg4 {[%emt 0:00:20]} 22. hxg4 {[%emt 0:00:04]} h6 {[%emt 0:00:04]} 23. Bh4 {[%emt 0:00:07]} Nxh4 {[%emt 0:00:02]} 24. f4 {[%emt 0:00:08]} Ng6 {[%emt 0:00:03]} 25. f5 {[%emt 0:00:02]} Ne5 {[%emt 0:00:02]} 26. Qxb7 {[%emt 0:00:06]} Bb6+ {[%emt 0:00:00]} 27. Rd4 {[%emt 0:00:06]} Bxd4+ {[%emt 0:00:00]} 28. Kf1 {[%emt 0:00:08]} Bb6 {[%emt 0:00:00]} 29. Qa6 {[%emt 0:00:07]} Rac8 {[%emt 0:00:00]} 30. Qe2 {[%emt 0:00:06]} Rfe8 {[%emt 0:00:00]} 31. Qd1 {[%emt 0:00:06]} Rcd8 {[%emt 0:00:00]} 32. g5 {[%emt 0:00:12]} hxg5 {[%emt 0:00:00]} 33. a4 {[%emt 0:00:35]} d5 {[%emt 0:00:00]} 34. exd5 {[%emt 0:00:04]} Rxd5 {[%emt 0:00:00]} 35. Qb3 {[%emt 0:00:07]} Red8 {[%emt 0:00:09]} 36. Qg3 {[%emt 0:00:09]} f6 {[%emt 0:00:09]} 37. b4 {[%emt 0:00:09]} Bd4 {[%emt 0:00:14]} 38. Qb3 {[%emt 0:00:05]} Kf8 {[%emt 0:00:05]} 39. b5 {[%emt 0:00:05]} cxb5 {[%emt 0:00:10]} 40. axb5 {[%emt 0:00:04]} Bc5 {[%emt 0:00:18]} 41. Qh3 {[%emt 0:00:13]} Kg8 {[%emt 0:00:24]} 42. Qb3 {[%emt 0:00:05]} Nf7 {[%emt 0:00:10]} 43. g3 {[%emt 0:00:14]} Bf8 {[%emt 0:00:07]} 44. g4 {[%emt 0:00:03]} Rd3 {[%emt 0:00:04]} 45. Qc4 {[%emt 0:00:05]} R8d4 {[%emt 0:00:07]} 46. Qc8 {[%emt 0:00:03]} Rf4+ {[%emt 0:00:03]} 47. Kg2 {[%emt 0:00:02]} Rd2+ {[%emt 0:00:02]} 48. Kg3 {[%emt 0:00:02]} Rd3+ {[%emt 0:00:03]} 49. Kg2 {[%emt 0:00:02]} Ne5 {[%emt 0:00:04]} 50. Rf1 {[%emt 0:00:05]} Rd2+ {[%emt 0:00:02]} 51. Kh3 {[%emt 0:00:04]} Rd3+ {[%emt 0:00:03]} 52. Kg2 {[%emt 0:00:02]} Rxg4+ {[%emt 0:00:02]} 53. Kf2 {[%emt 0:00:02]} Rf3+ {[%emt 0:00:02]} 54. Ke2 {[%emt 0:00:02]} Rxf1 {[%emt 0:00:03]} 55. Kxf1 Rf4+ {[%emt 0:00:18]} 56. Ke2 {[%emt 0:00:07]} Re4+ {[%emt 0:00:00]} 57. Kd2 {[%emt 0:00:02]} Nc4+ {[%emt 0:00:00]} 58. Kc2 {[%emt 0:00:03]} Nd6 {[%emt 0:00:00]} 59. Qc7 {[%emt 0:00:04]} Nxb5 {[%emt 0:00:00]} 60. Qb7 {[%emt 0:00:04]} Nd4+ {[%emt 0:00:02]} 61. Kc3 {[%emt 0:00:04]} Rh4 {[%emt 0:00:04]} 62. Qc7 {[%emt 0:00:03]} Nb5+ {[%emt 0:00:03]} 63. Kb3 {[%emt 0:00:07]} Nxc7 {[%emt 0:00:02]} 64. Kc3 {[%emt 0:00:00]} Rh3+ {[%emt 0:00:02]} 65. Kc4 {[%emt 0:00:00]} a6 {[%emt 0:00:03]} 66. Kd4 {[%emt 0:00:04]} Kf7 {[%emt 0:00:06]} 67. Ke4 {[%emt 0:00:03]} Bc5 {[%emt 0:00:02]} 1/2-1/2

[Event "Djerba Festival Blitz 2025"]
[Site "Djerba"]
[Date "2025.02.21"]
[Round "9.33"]
[White "Ferahi, Tarik"]
[Black "Chabbouh, Mohamed Rayen"]
[Result "1-0"]
[Annotator "NA"]
[ECO "C62"]
[WhiteElo "1612"]
[BlackElo "1518"]
[PlyCount "87"]
[EventDate "2025.02.15"]
[EventType "swiss"]
[EventCountry "TUN"]
[SourceTitle "playchess.com"]
[Source "ChessBase"]
[SourceQuality "1"]
[TimeControl "180+3"]

1. e4 {[%emt 0:00:03]} e5 {[%emt 0:00:03]} 2. Nf3 {[%emt 0:00:02]} Nc6 {[%emt 0:00:01]} 3. Bb5 {[%emt 0:00:02]} d6 {[%emt 0:00:02]} 4. d4 {[%emt 0:00:02]} exd4 {[%emt 0:00:03]} 5. Nxd4 {[%emt 0:00:03]} Bd7 {[%emt 0:00:02]} 6. Nxc6 {[%emt 0:00:03]} Bxc6 {[%emt 0:00:03]} 7. Bxc6+ {[%emt 0:00:03]} bxc6 {[%emt 0:00:02]} 8. Qf3 {[%emt 0:00:02]} Rb8 {[%emt 0:00:07]} 9. e5 {[%emt 0:00:18]} Qd7 {[%emt 0:00:05]} 10. exd6 {[%emt 0:00:25]} cxd6 {[%emt 0:00:03]} 11. O-O {[%emt 0:00:03]} Be7 {[%emt 0:00:01]} 12. Re1 {[%emt 0:00:04]} Rb7 {[%emt 0:00:07]} 13. Bg5 {[%emt 0:00:20]} f6 {[%emt 0:00:02]} 14. Bh4 {[%emt 0:00:09]} Rxb2 {[%emt 0:00:05]} 15. Nc3 {[%emt 0:00:20]} Nh6 {[%emt 0:00:10]} 16. Qe4 {[%emt 0:00:34]} Rb7 {[%emt 0:00:10]} 17. Rad1 {[%emt 0:00:05]} O-O {[%emt 0:00:09]} 18. Qc4+ {[%emt 0:00:05]} Kh8 {[%emt 0:00:09]} 19. Bg3 {[%emt 0:00:20]} Nf5 {[%emt 0:00:04]} 20. Qd3 {[%emt 0:00:13]} Nxg3 {[%emt 0:00:03]} 21. hxg3 {[%emt 0:00:06]} d5 {[%emt 0:00:02]} 22. a4 {[%emt 0:00:08]} Bb4 {[%emt 0:00:06]} 23. Re3 {[%emt 0:00:10]} Rd8 {[%emt 0:00:09]} 24. Ne2 {[%emt 0:00:05]} Bc5 {[%emt 0:00:05]} 25. Rf3 {[%emt 0:00:03]} Rb4 {[%emt 0:00:11]} 26. Re1 {[%emt 0:00:08]} Rxa4 {[%emt 0:00:03]} 27. Nf4 {[%emt 0:00:02]} Ra3 {[%emt 0:00:09]} 28. Qd2 {[%emt 0:00:11]} Rxf3 {[%emt 0:00:03]} 29. gxf3 {[%emt 0:00:03]} Qd6 {[%emt 0:00:07]} 30. Ne6 {[%emt 0:00:04]} Re8 {[%emt 0:00:08]} 31. Nxc5 {[%emt 0:00:07]} Rxe1+ {[%emt 0:00:03]} 32. Qxe1 {[%emt 0:00:02]} h5 {[%emt 0:00:07]} 33. Qe8+ {[%emt 0:00:08]} Kh7 {[%emt 0:00:03]} 34. Ne6 {[%emt 0:00:03]} Qe5 {[%emt 0:00:17]} 35. Qf7 {[%emt 0:00:04]} f5 {[%emt 0:00:03]} 36. Qxh5+ {[%emt 0:00:03]} Kg8 {[%emt 0:00:04]} 37. Qe8+ {[%emt 0:00:02]} Kh7 {[%emt 0:00:03]} 38. Ng5+ {[%emt 0:00:03]} Kh6 {[%emt 0:00:05]} 39. Qxe5 {[%emt 0:00:02]} Kxg5 {[%emt 0:00:03]} 40. Qd6 {[%emt 0:00:02]} a5 {[%emt 0:00:03]} 41. Qxc6 {[%emt 0:00:03]} d4 {[%emt 0:00:02]} 42. Qc5 {[%emt 0:00:02]} a4 {[%emt 0:00:02]} 43. Qb4 {[%emt 0:00:02]} d3 {[%emt 0:00:05]} 44. cxd3 {[%emt 0:00:02]} 1-0